[Event "Summer Chess Classic-B 2022"]
[Site "Saint Louis"]
[Date "2022.06.03"]
[Round "2.1"]
[White "Harutyunyan, Tigran K."]
[Black "Zhou, Jianchao"]
[Result "0-1"]
[ECO "B51"]
[WhiteElo "2550"]
[BlackElo "2589"]
[Annotator "TA"]
[PlyCount "120"]
[EventDate "2022.05.31"]
[EventType "tourn"]
[EventCountry "USA"]
[SourceTitle "playchess.com"]
[Source "ChessBase"]
[SourceQuality "1"]
[TimeControl "40/5400+30:1800+30"]

{[%evp 9,120,6,31,16,12,6,12,19,14,18,25,18,26,19,33,-17,0,-18,-18,-16,39,-31,-18,-22,0,0,-14,-51,0,-39,0,0,21,25,29,26,37,9,9,0,0,0,0,0,0,0,0,0,0,0,0,-8,-11,-22,-8,-89,-48,-64,-23,-18,-9,-16,-8,-146,-87,-88,-85,-88,-93,-95,-92,-97,-87,-90,-37,-98,0,0,0,-69,-70,-69,-73,-58,-25,-27,-29,-69,-69,-69,-62,-70,-69,-185,-185,-185,-20,-185,-185,-180,-182,-284,-271,-670,-769,-718,-260,-260,-267,-2033,-1656,-1511,-583]} 1. e4 {[%emt 0:00:04]} c5 {[%emt 0:00:06]} 2. Nf3 {[%emt 0:00:15]} d6 {[%emt 0:01:23]} 3. Bb5+ {[%emt 0:00:22]} Nd7 {[%emt 0:00:55]} 4. a4 {[%emt 0:00:21]} Ngf6 {[%emt 0:00:35]} 5. Nc3 {[%emt 0:00:13]} e6 {[%emt 0:01:45]} 6. a5 {[%emt 0:02:42] B51: Sicilian: Moscow Variation (3 Bb5+) without 3...Bd7.} Be7 {[%emt 0:03:54]} 7. O-O {[%emt 0:00:24]} O-O {[%emt 0:02:34]} 8. Re1 {[%emt 0:00:28][%cal Bf1e1,Be1e3,Be3g3,Bg3g4][%mdl 32] The position is equal.} Ne5 {[%emt 0:05:03] [#]} 9. Nxe5 $146 {[%emt 0:05:11]} (9. a6 {is more complex.} Nfd7 10. axb7 Nxf3+ 11. Qxf3 Bxb7 12. d3) ({Predecessor:} 9. a6 Qb6 10. Nxe5 dxe5 11. Qe2 Ne8 12. Na4 Qc7 13. axb7 Bxb7 14. Ba6 Bc6 15. b3 {1-0 (41) Antal,G (2553)-Peyrer,K (2165) Deutschlandsberg 2018}) 9... dxe5 {[%emt 0:00:03]} 10. b3 {[%emt 0:00:12]} Ne8 {[%emt 0:07:37]} 11. Re3 {[%emt 0:13:00]} Nd6 {[%emt 0:04:09]} 12. Bf1 {[%emt 0:03:26]} (12. Bb2 $14) 12... Bd7 $11 {[%emt 0:06:49]} 13. Qh5 {[%emt 0:04:58]} Bg5 {[%emt 0:05:36]} 14. Rg3 {[%emt 0:12:19]} h6 {[%emt 0:10:48]} (14... f6 $11) 15. d3 {[%emt 0:28:30]} (15. h4 $14 g6 16. Rxg5 hxg5 17. Qh6) 15... Bf4 $15 {[%emt 0:06:25]} 16. Rg4 {[%emt 0:08:02]} Bxc1 {[%emt 0:08:07]} 17. Rxc1 {[%emt 0:00:18]} ({Much worse is} 17. Qxe5 Bg5 $1 18. Qxd6 Rc8 19. Rxg5 hxg5 $17) 17... f5 {[%emt 0:08:49]} 18. Rg3 {[%emt 0:01:59]} Kh8 {[%emt 0:01:32]} (18... Rf6 $1 $15 19. Ra1 b5) 19. exf5 {[%emt 0:05:21]} (19. Qg6 $5 {[%cal Rg6g7]} Qe7 20. exf5 $11) 19... exf5 {[%emt 0:04:13]} (19... Nxf5 $5 {[%cal Rd8a5]} 20. Rh3 Qxa5 $15) 20. Qg6 {[%emt 0:00:08][%csl Gg3,LRd6,LRg7][%cal Rg6g7]} Qf6 {[%emt 0:04:56]} 21. Qxf6 {[%emt 0:01:01]} Rxf6 {[%emt 0:08:42]} 22. Nd5 {[%emt 0:01:17]} Rff8 {[%emt 0:01:11]} 23. Re3 {[%emt 0:02:03]} Rae8 {[%emt 0:00:49]} 24. Rce1 {[%emt 0:05:49]} Bc6 {[%emt 0:00:21]} 25. c4 {[%emt 0:00:40]} Bxd5 {[%emt 0:02:41]} 26. cxd5 {[%emt 0:00:13]} e4 27. dxe4 {[%emt 0:00:30]} Rxe4 {[%emt 0:01:48]} 28. Rxe4 {[%emt 0:02:17]} fxe4 $11 {[%emt 0:00:17][%mdl 4096] Endgame KRB-KRN} 29. Rc1 {[%emt 0:00:45]} Rc8 {[%emt 0:01:00]} 30. g3 {[%emt 0:00:19]} g5 {[%emt 0:00:40]} 31. Bh3 {[%emt 0:02:20]} Rc7 {[%emt 0:00:05]} 32. Be6 {[%emt 0:00:30]} (32. f3 $11) 32... Kg7 {[%emt 0:00:33]} 33. f3 {[%emt 0:00:22]} exf3 {[%emt 0:01:01]} 34. Kf2 {[%emt 0:00:01]} Kf6 {[%emt 0:01:09]} 35. Kxf3 {[%emt 0:00:02]} c4 {[%emt 0:00:11]} 36. b4 {[%emt 0:01:36]} (36. bxc4 $11 {keeps the balance.} Rxc4 37. Re1) 36... c3 {[%emt 0:00:29]} (36... Ke5 $142 $1 37. Ke2 Kd4) 37. Ke3 $17 {[%emt 0:00:23]} Rc4 $1 {[%emt 0:01:21]} 38. Kd3 {[%emt 0:00:08]} Rxb4 {[%emt 0:00:09]} 39. Rf1+ {[%emt 0:00:58]} Ke5 {[%emt 0:00:06] Threatens to win with ...Nb5.} 40. Kxc3 {[%emt 0:00:17]} Ra4 {[%emt 0:00:37]} 41. Re1+ {[%emt 0:04:44]} Re4 {[%emt 0:24:21]} (41... Ne4+ $1 $17 42. Kb3 Rxa5) 42. Ra1 {[%emt 0:02:16]} (42. Rxe4+ $15 Nxe4+ 43. Kb4) 42... Re2 {[%emt 0:02:05]} (42... Re3+ $17 43. Kb4 Re2) 43. Kd3 $1 $11 {[%emt 0:00:08]} Re4 {[%emt 0:01:11]} 44. Bg8 {[%emt 0:04:54]} (44. Kc3 $1 $11) 44... Rd4+ $15 {[%emt 0:00:43]} 45. Kc2 {[%emt 0:01:09]} Ne4 {[%emt 0:01:35]} 46. Re1 {[%emt 0:01:23]} b5 {[%emt 0:01:36]} 47. axb6 $1 {[%emt 0:01:04]} axb6 {[%emt 0:00:02]} 48. Rb1 {[%emt 0:04:13]} Rc4+ {[%emt 0:01:50]} 49. Kd3 {[%emt 0:00:48]} Rc3+ {[%emt 0:00:17]} 50. Ke2 {[%emt 0:00:02]} Rc8 {[%emt 0:01:49] And now ...Nc3+ would win. Black is more active.} 51. Be6 {[%emt 0:00:09]} (51. Rxb6 $15 Rxg8 52. Rxh6) 51... Rc2+ $19 {[%emt 0:01:12]} 52. Ke3 {[%emt 0:03:27]} Rc3+ $1 {[%emt 0:00:03]} 53. Ke2 {[%emt 0:00:06] [#] Now White is beyond hope.} Rxg3 $1 {[%emt 0:00:44][%mdl 512]} 54. Rb4 {[%emt 0:05:12] [#]} Ra3 $1 {[%emt 0:00:41][%cal Ob6b5]} 55. h3 {[%emt 0:00:06]} (55. Rxb6 {is a better defense.} Ra2+ 56. Kf3) 55... Nc3+ {[%emt 0:00:31]} 56. Kf2 $2 {[%emt 0:00:06]} (56. Kd2) 56... Nxd5 {[%emt 0:00:13]} 57. Bxd5 {[%emt 0:00:14]} Kxd5 {[%emt 0:00:02]} 58. Rxb6 {[%emt 0:00:30]} Rxh3 {[%emt 0:00:07]} 59. Rb4 $2 {[%emt 0:03:28]} (59. Kg2 g4 60. Rf6) 59... Ke5 {[%emt 0:00:28] Hoping for ...Kf5.} 60. Kg2 {[%emt 0:01:07]} Rd3 {[%emt 0:00:08] Weighted Error Value: White=0.46/Black=0.10 (very precise)} (60... Re3 $142 61. Kf2 Re4) 0-1

[Event "Summer Chess Classic-B 2022"]
[Site "Saint Louis"]
[Date "2022.06.03"]
[Round "2.2"]
[White "Jacobson, Brandon"]
[Black "Dragun, Kamil"]
[Result "1/2-1/2"]
[ECO "E50"]
[WhiteElo "2526"]
[BlackElo "2571"]
[Annotator "TA"]
[PlyCount "86"]
[EventDate "2022.05.31"]
[EventType "tourn"]
[EventCountry "USA"]
[SourceTitle "playchess.com"]
[Source "ChessBase"]
[SourceQuality "1"]
[TimeControl "40/5400+30:1800+30"]

{[%evp 9,86,8,15,-2,31,19,8,9,17,8,7,-1,27,14,15,0,0,0,0,10,32,33,85,85,82,40,31,29,29,29,29,27,30,30,30,30,26,27,30,25,25,33,30,19,17,31,34,12,124,124,124,124,124,124,124,123,123,93,141,93,116,92,166,124,124,124,124,124,124,124,124,124,123,123,116,75,75,73,189]} 1. d4 {[%emt 0:00:03]} Nf6 {[%emt 0:00:12]} 2. c4 {[%emt 0:00:06]} e6 {[%emt 0:00:09]} 3. Nc3 {[%emt 0:00:18]} Bb4 {[%emt 0:00:21]} 4. e3 {[%emt 0:00:08]} O-O {[%emt 0:02:14]} 5. Nf3 {[%emt 0:00:33]} c5 {[%emt 0:00:46]} 6. Bd3 {[%emt 0:00:20] E50: Nimzo-Indian: Rubinstein: 4...0-0 5 Nf3.} Nc6 {[%emt 0:00:45]} 7. dxc5 {[%emt 0:01:56]} Bxc5 {[%emt 0:06:40]} 8. a3 {[%emt 0:11:12] The position is equal.} d5 {[%emt 0:06:38]} 9. cxd5 {[%emt 0:05:16]} exd5 {[%emt 0:00:50]} 10. h3 {[%emt 0:03:07]} a6 {[%emt 0:14:17] [#]} 11. b4 $146 {[%emt 0:06:27]} ({Predecessor:} 11. O-O d4 12. exd4 Nxd4 13. Nxd4 Bxd4 14. Ne2 Be5 15. Re1 Re8 16. Kf1 Bd7 17. Ng1 {0-1 (47) Seegolam,P-Ramirez,P (2205) Novi Sad 1990}) 11... Ba7 {[%emt 0:00:58]} 12. Bb2 {[%emt 0:06:58]} d4 {[%emt 0:20:48]} 13. exd4 {[%emt 0:01:02]} Nxd4 {[%emt 0:00:14]} 14. O-O {[%emt 0:00:14]} Be6 {[%emt 0:08:53] [#] And now ...Bb3 would win.} 15. Ne4 {[%emt 0:15:53]} Bb3 {[%emt 0:20:53]} ({Black should play} 15... Kh8 $14 16. Nxf6 Qxf6 17. Nxd4 Bxd4 18. Bxd4 Qxd4) 16. Nxf6+ $16 {[%emt 0:01:14]} Qxf6 {[%emt 0:00:58]} 17. Bxd4 {[%emt 0:01:57]} (17. Qxb3 {is interesting.} Nxb3 18. Bxf6 gxf6 19. Rad1) 17... Bxd1 {[%emt 0:02:17]} 18. Bxf6 {[%emt 0:00:07]} Bxf3 {[%emt 0:00:02]} 19. gxf3 {[%emt 0:01:17]} gxf6 {[%emt 0:00:02]} 20. Be4 {[%emt 0:00:06]} Rab8 {[%emt 0:02:38]} 21. Rfd1 {[%emt 0:02:48]} Rfd8 {[%emt 0:04:01] Against Rd7} 22. Rxd8+ {[%emt 0:02:09]} Rxd8 {[%emt 0:00:01]} 23. Bxb7 $11 {[%emt 0:00:07][%mdl 4096] Endgame KRB-KRB} Rd2 {[%emt 0:00:27]} 24. Bxa6 {[%emt 0:03:39]} Rxf2 {[%emt 0:04:04] Threatens to win with ...Ra2+.} 25. Kh1 {[%emt 0:00:05]} Rxf3 {[%emt 0:00:15]} 26. Bf1 {[%emt 0:00:55]} Rb3 {[%emt 0:03:06]} 27. b5 {[%emt 0:00:53]} Bd4 {[%emt 0:00:33]} 28. Ra2 {[%emt 0:14:55]} Rb2 {[%emt 0:00:05]} (28... f5 $11 {keeps the balance.}) 29. Rxb2 $16 {[%emt 0:00:03]} Bxb2 {[%emt 0:00:05] [#] KB-KB} 30. a4 $1 {[%emt 0:00:03]} Kf8 {[%emt 0:00:15]} 31. Bd3 {[%emt 0:00:04]} h6 {[%emt 0:00:21]} 32. Kg2 {[%emt 0:00:34]} Ke7 {[%emt 0:00:50]} 33. Kf3 {[%emt 0:00:26]} f5 {[%emt 0:01:28]} (33... Kd6 $142) 34. Kg3 {[%emt 0:12:04]} (34. a5 $142) 34... Bc3 {[%emt 0:00:43]} 35. Kh4 {[%emt 0:00:21]} Kf6 {[%emt 0:00:37]} (35... Kd6 $16) 36. b6 {[%emt 0:03:53]} Kg6 {[%emt 0:00:31][%cal Rc3e1] White is better.} 37. Kg3 {[%emt 0:03:48] Kf4 is the strong threat.} Ba5 {[%emt 0:00:05]} 38. b7 {[%emt 0:00:04]} Bc7+ {[%emt 0:00:03]} 39. Kf3 {[%emt 0:00:29] aiming for Ke3.} Kf6 {[%emt 0:00:05]} 40. a5 {[%emt 0:00:40][%cal Ba4a5,Ba5a6][%mdl 32]} Ke5 {[%emt 0:00:13]} 41. a6 {[%emt 0:30:05] White threatens a7 and mate.} Bb8 {[%emt 0:30:15]} 42. Bc4 {[%emt 0:00:06]} Kd4 {[%emt 0:01:23]} 43. Bxf7 {[%emt 0:00:44]} Ke5 {[%emt 0:00:09] Prevents Be6.  Weighted Error Value: White=0.09 (flawless) /Black=0.15 (very precise)} (43... Kc5 $16) 1/2-1/2

[Event "Summer Chess Classic-B 2022"]
[Site "Saint Louis"]
[Date "2022.06.03"]
[Round "2.3"]
[White "Antipov, Mikhail Al."]
[Black "Checa, Nicolas"]
[Result "1/2-1/2"]
[ECO "D36"]
[WhiteElo "2592"]
[BlackElo "2533"]
[Annotator "TA"]
[PlyCount "81"]
[EventDate "2022.05.31"]
[EventType "tourn"]
[EventCountry "USA"]
[SourceTitle "playchess.com"]
[Source "ChessBase"]
[SourceQuality "1"]
[TimeControl "40/5400+30:1800+30"]

{[%evp 20,81,16,0,2,0,8,0,32,0,0,-13,-5,-13,-14,0,-7,0,-4,-52,-52,-37,-47,-33,-26,-34,-25,-57,-41,-40,-16,-7,-7,-15,0,0,0,0,0,0,0,0,0,0,0,0,0,0,0,0,0,0,0,0,0,0,0,0,0,0,0,0,0,0]} 1. d4 {[%emt 0:00:07]} d5 {[%emt 0:01:01]} 2. c4 {[%emt 0:00:05]} e6 {[%emt 0:01:20]} 3. Nc3 {[%emt 0:01:42]} Nf6 {[%emt 0:00:11]} 4. cxd5 {[%emt 0:00:39]} exd5 {[%emt 0:00:10]} 5. Bg5 {[%emt 0:00:05]} c6 {[%emt 0:00:06]} 6. e3 {[%emt 0:03:50]} Be7 {[%emt 0:00:59]} 7. Bd3 {[%emt 0:00:19]} h6 {[%emt 0:00:51]} 8. Bh4 {[%emt 0:03:16]} Nbd7 {[%emt 0:02:02]} 9. Nge2 {[%emt 0:05:54]} O-O {[%emt 0:01:18]} 10. Qc2 {[%emt 0:05:07]} Re8 {[%emt 0:00:23]} 11. f3 {[%emt 0:03:49]} b5 $1 {[%emt 0:03:53][%mdl 4] is recently more successful than 11...c5. D36: Queen's Gambit Declined: Exchange Variation: Main line (5 Bg5 c6 6 Qc2).} 12. O-O {[%emt 0:02:19]} Bb7 {[%emt 0:00:17]} 13. Bf2 {[%emt 0:24:34] [#]} Rc8 $146 {[%emt 0:01:36]} ({Predecessor:} 13... a6 14. Bf5 c5 15. dxc5 Bxc5 16. Nd4 Bd6 17. Nce2 Ne5 18. b3 g6 19. Bh3 Bc8 20. Bxc8 Rxc8 {½-½ (60) Wojtaszek,R (2691)-Lupulescu,C (2645) Legnica 2021}) 14. Qd2 {[%emt 0:03:13]} a6 {[%emt 0:18:02]} 15. Ng3 {[%emt 0:04:53]} c5 {[%emt 0:00:39]} 16. dxc5 {[%emt 0:06:08]} Bxc5 {[%emt 0:01:17]} 17. Bf5 {[%emt 0:03:31]} Qb6 {[%emt 0:05:53][%cal Rc5e3]} 18. Bxd7 {[%emt 0:19:44]} Nxd7 {[%emt 0:00:51]} 19. Nxd5 {[%emt 0:00:59]} (19. e4 $11) 19... Bxd5 $15 {[%emt 0:01:37]} 20. Qxd5 {[%emt 0:00:02]} Nf6 {[%emt 0:07:51]} 21. Qd2 {[%emt 0:00:32]} Rcd8 {[%emt 0:08:06][%mdl 64] [#] Deflection} (21... Rxe3 $2 22. b4 Bd4 23. Nf5 Bxa1 24. Rxa1 $18 (24. Bxe3 Qe6 $16)) 22. Qc2 {[%emt 0:00:28]} Bxe3 {[%emt 0:00:28]} 23. Bxe3 {[%emt 0:01:46]} Qxe3+ {[%emt 0:00:26]} 24. Qf2 {[%emt 0:00:09]} Rd2 {[%emt 0:02:36]} (24... Qg5 $5 {[%cal Rd8d2]}) 25. Qxe3 {[%emt 0:00:05] The position is equal.} Rxe3 {[%emt 0:00:05]} 26. Rf2 {[%emt 0:00:09]} Red3 {[%emt 0:00:06] ...Rxf2 is the strong threat.} 27. Nf1 {[%emt 0:00:31]} Rd1 {[%emt 0:00:14]} 28. Rxd1 {[%emt 0:00:20]} Rxd1 {[%emt 0:00:06]} 29. Rd2 {[%emt 0:00:06]} Rxd2 {[%emt 0:01:27]} 30. Nxd2 $11 {[%emt 0:00:01][%mdl 4096] Endgame KN-KN} Kf8 {[%emt 0:00:08]} 31. Kf2 {[%emt 0:00:08]} Nd5 {[%emt 0:00:07]} 32. a3 {[%emt 0:05:31]} Ke7 {[%emt 0:00:37]} 33. g3 {[%emt 0:00:27]} Kd6 {[%emt 0:01:16]} 34. Ke2 {[%emt 0:00:17]} f5 {[%emt 0:01:52]} 35. Kd3 {[%emt 0:00:16]} Ne7 {[%emt 0:01:57]} 36. f4 {[%emt 0:02:28]} Nc6 {[%emt 0:01:30]} 37. Nf1 {[%emt 0:00:15]} g6 {[%emt 0:00:49]} 38. Ne3 {[%emt 0:00:10]} a5 {[%emt 0:00:36]} 39. Ng2 {[%emt 0:01:55]} Kd5 {[%emt 0:00:41]} 40. Nh4 {[%emt 0:00:39]} Ne7 {[%emt 0:00:06]} 41. Nf3 {[%emt 0:30:26] Weighted Error Value: White=0.06 (flawless) /Black=0.04 (flawless)} 1/2-1/2

[Event "Summer Chess Classic-B 2022"]
[Site "Saint Louis"]
[Date "2022.06.03"]
[Round "2.4"]
[White "Yoo, Christopher Woojin"]
[Black "Vazquez, Guillermo"]
[Result "1/2-1/2"]
[ECO "B19"]
[WhiteElo "2535"]
[BlackElo "2557"]
[Annotator "TA"]
[PlyCount "157"]
[EventDate "2022.05.31"]
[EventType "tourn"]
[EventCountry "USA"]
[SourceTitle "playchess.com"]
[Source "ChessBase"]
[SourceQuality "1"]
[TimeControl "40/5400+30:1800+30"]

{[%evp 29,157,-4,-9,-17,-13,-67,-56,-62,-55,-68,-56,-71,-56,-47,-14,-58,0,0,0,0,0,0,0,0,0,0,0,0,0,0,0,0,0,0,0,0,0,0,0,0,0,0,0,0,0,-18,0,0,0,0,0,0,0,0,0,0,0,0,0,0,0,0,0,0,0,0,0,0,0,0,0,0,0,0,0,0,0,0,0,0,0,0,0,0,0,0,0,0,0,0,0,0,0,0,0,0,0,0,0,0,0,0,0,0,0,0,0,0,0,0,0,0,0,0,0,0,0,0,0,0,0,0,0,0,0,0,0,0,0,0]} 1. e4 {[%emt 0:00:12]} c6 {[%emt 0:00:42]} 2. d4 {[%emt 0:00:05]} d5 {[%emt 0:00:10]} 3. Nc3 {[%emt 0:00:06]} dxe4 {[%emt 0:01:41]} 4. Nxe4 {[%emt 0:00:08]} Bf5 {[%emt 0:01:13]} 5. Ng3 {[%emt 0:00:06]} Bg6 {[%emt 0:00:09]} 6. h4 {[%emt 0:00:08]} h6 {[%emt 0:00:12]} 7. Nf3 {[%emt 0:00:07]} e6 {[%emt 0:01:24]} 8. h5 {[%emt 0:03:38]} Bh7 {[%emt 0:00:05]} 9. Bd3 {[%emt 0:00:03]} Bxd3 {[%emt 0:00:13]} 10. Qxd3 {[%emt 0:00:03]} Nf6 {[%emt 0:00:23]} 11. Bf4 {[%emt 0:02:33]} Qa5+ {[%emt 0:03:42]} 12. Bd2 {[%emt 0:01:56]} Bb4 {[%emt 0:00:51]} 13. c3 {[%emt 0:02:30]} Bd6 {[%emt 0:06:09]} 14. c4 {[%emt 0:05:24]} Bb4 {[%emt 0:03:59]} 15. O-O {[%emt 0:00:55]} Bxd2 {[%emt 0:00:33]} 16. Nxd2 {[%emt 0:00:31]} O-O {[%emt 0:07:07]} 17. c5 {[%emt 0:02:51]} ({White should try} 17. Qc3 $11 Qg5 18. Nf3) 17... Rd8 $15 {[%emt 0:16:52]} 18. Nde4 {[%emt 0:04:40]} Nxe4 {[%emt 0:01:10]} 19. Nxe4 {[%emt 0:00:09]} Rd5 $1 {[%emt 0:00:11]} 20. Qf3 {[%emt 0:14:01]} Nd7 {[%emt 0:01:56]} 21. Rfd1 {[%emt 0:00:24]} Qc7 {[%emt 0:05:27]} 22. Rd3 {[%emt 0:03:03]} ({Reject} 22. Nd6 Nf6 $15) 22... Rf5 {[%emt 0:03:04]} (22... b6 $15) 23. Qg4 $1 $11 {[%emt 0:02:34]} Nf6 {[%emt 0:02:11]} 24. Nxf6+ {[%emt 0:00:42]} Rxf6 {[%emt 0:00:03]} 25. Rg3 {[%emt 0:01:54]} g5 {[%emt 0:00:19]} 26. hxg6 {[%emt 0:05:25]} Rxg6 {[%emt 0:00:06]} 27. Qh4 {[%emt 0:00:10]} Rxg3 {[%emt 0:00:19]} 28. fxg3 {[%emt 0:00:03]} Qd8 {[%emt 0:02:04]} 29. Qf4 {[%emt 0:01:17]} Rc8 {[%emt 0:08:06]} 30. Re1 {[%emt 0:08:14]} Qg5 {[%emt 0:06:10]} 31. Qxg5+ {[%emt 0:01:13]} hxg5 {[%emt 0:00:03]} 32. Re5 {[%emt 0:00:08]} Rd8 {[%emt 0:01:36]} 33. Rxg5+ {[%emt 0:00:11]} Kf8 {[%emt 0:00:07]} 34. Rg4 {[%emt 0:00:13]} b6 {[%emt 0:00:57]} 35. cxb6 {[%emt 0:04:33]} axb6 {[%emt 0:00:04]} 36. Kf2 {[%emt 0:00:22]} b5 {[%emt 0:03:42]} 37. Re4 {[%emt 0:01:38]} Ke7 {[%emt 0:02:44]} 38. g4 {[%emt 0:02:10]} Ra8 {[%emt 0:06:54]} 39. a3 {[%emt 0:00:10]} Ra4 {[%emt 0:00:14]} 40. g5 {[%emt 0:10:39]} b4 {[%emt 0:01:35]} 41. d5 {[%emt 0:30:28]} cxd5 {[%emt 0:30:17]} 42. Rd4 {[%emt 0:01:15]} e5 {[%emt 0:05:44]} 43. Rxd5 {[%emt 0:00:26]} bxa3 {[%emt 0:00:09]} 44. bxa3 {[%emt 0:00:04]} ({Don't blunder} 44. Rxe5+ $2 Kd6 45. Re1 a2 $19) 44... Rxa3 {[%emt 0:00:06]} 45. Rxe5+ {[%emt 0:00:04]} Kf8 {[%emt 0:00:11]} 46. g3 {[%emt 0:00:29]} Kg7 {[%emt 0:00:16]} 47. Kg2 {[%emt 0:00:05]} Kg6 {[%emt 0:00:11]} 48. Kh3 {[%emt 0:00:05]} Rb3 {[%emt 0:00:40]} 49. Kh4 {[%emt 0:00:13]} Rb4+ {[%emt 0:00:13]} 50. g4 {[%emt 0:00:05]} Rb1 {[%emt 0:00:13]} 51. Ra5 {[%emt 0:00:05]} Rh1+ {[%emt 0:00:09]} 52. Kg3 {[%emt 0:00:02]} Rg1+ {[%emt 0:00:12]} 53. Kf3 {[%emt 0:00:07]} Rf1+ {[%emt 0:00:09]} 54. Kg2 $1 {[%emt 0:00:05]} Rb1 {[%emt 0:00:06]} 55. Rf5 {[%emt 0:00:13]} Ra1 {[%emt 0:00:20]} 56. Kg3 {[%emt 0:00:32]} Rg1+ {[%emt 0:00:12]} 57. Kh3 {[%emt 0:00:06]} Rh1+ {[%emt 0:00:15]} 58. Kg2 {[%emt 0:00:05]} Ra1 {[%emt 0:00:05]} 59. Rb5 {[%emt 0:00:18]} Rc1 {[%emt 0:00:05]} 60. Kg3 $1 {[%emt 0:00:16]} Rg1+ {[%emt 0:00:04]} 61. Kh3 {[%emt 0:00:16]} Rh1+ {[%emt 0:00:07]} 62. Kg2 $1 {[%emt 0:00:02]} Ra1 {[%emt 0:00:07]} 63. Rc5 {[%emt 0:00:03]} Rb1 {[%emt 0:00:07]} 64. Rd5 {[%emt 0:00:04]} Ra1 {[%emt 0:00:06]} 65. Re5 {[%emt 0:00:02]} Rb1 {[%emt 0:00:10]} 66. Rf5 {[%emt 0:00:03]} Ra1 {[%emt 0:00:11]} 67. Re5 {[%emt 0:00:04]} Rb1 {[%emt 0:00:07]} 68. Rd5 {[%emt 0:00:02]} Ra1 {[%emt 0:00:08]} 69. Rc5 {[%emt 0:00:02]} Rb1 {[%emt 0:00:07]} 70. Ra5 {[%emt 0:00:05]} Rc1 {[%emt 0:00:06]} 71. Kf2 {[%emt 0:00:05]} Rb1 {[%emt 0:00:13]} 72. Rc5 {[%emt 0:00:03]} Ra1 {[%emt 0:00:26]} 73. Re5 {[%emt 0:00:07]} Rb1 {[%emt 0:00:05]} 74. Kf3 {[%emt 0:00:03]} Rf1+ {[%emt 0:00:07]} 75. Kg2 {[%emt 0:00:02]} Ra1 {[%emt 0:00:09]} 76. Rf5 {[%emt 0:00:04]} Rb1 {[%emt 0:00:06]} 77. Kg3 {[%emt 0:00:06]} Rg1+ {[%emt 0:00:06]} 78. Kh3 {[%emt 0:00:04]} Rh1+ {[%emt 0:00:13]} 79. Kg2 {[%emt 0:00:03]} 1/2-1/2

[Event "Summer Chess Classic-B 2022"]
[Site "Saint Louis"]
[Date "2022.06.03"]
[Round "2.5"]
[White "Burke, John M"]
[Black "Ali Marandi, Cemil Can"]
[Result "1/2-1/2"]
[ECO "C41"]
[WhiteElo "2579"]
[BlackElo "2532"]
[Annotator "TA"]
[PlyCount "85"]
[EventDate "2022.05.31"]
[EventType "tourn"]
[EventCountry "USA"]
[SourceTitle "playchess.com"]
[Source "ChessBase"]
[SourceQuality "1"]
[TimeControl "40/5400+30:1800+30"]

{[%evp 17,85,35,45,23,43,18,27,10,22,8,20,8,35,22,44,0,0,0,0,0,0,0,-16,-5,6,6,4,6,3,4,4,3,4,4,4,4,6,0,10,0,7,0,0,0,0,0,9,0,8,0,0,0,5,0,0,0,8,8,26,0,0,0,0,0,0,0,0,0,0,0]} 1. e4 {[%emt 0:00:03]} d6 {[%emt 0:00:05]} 2. d4 {[%emt 0:00:06]} Nf6 {[%emt 0:00:05]} 3. Nc3 {[%emt 0:00:06]} e5 {[%emt 0:00:06]} 4. Nf3 {[%emt 0:00:39]} Nbd7 {[%emt 0:00:03]} 5. Bc4 {[%emt 0:00:45]} Be7 {[%emt 0:00:05]} 6. a4 {[%emt 0:00:46]} O-O {[%emt 0:00:43]} 7. O-O {[%emt 0:00:06]} c6 {[%emt 0:00:14]} 8. h3 {[%emt 0:03:36]} h6 {[%emt 0:02:22]} 9. Re1 $1 {[%emt 0:03:46] 9.Re1 is better than 9.Be3.} Re8 {[%emt 0:01:33]} 10. Be3 {[%emt 0:06:09] C41: Philidor Defence.} exd4 {[%emt 0:01:46]} 11. Bxd4 {[%emt 0:04:14]} Nf8 {[%emt 0:00:53][%cal Bd7f8,Bf8e6,Be6c5][%mdl 32]} 12. Qd3 {[%emt 0:03:18] White has an edge.} Be6 {[%emt 0:01:58]} 13. a5 {[%emt 0:06:10]} Qc7 {[%emt 0:06:19]} 14. Be3 {[%emt 0:07:54] [#]} Bxc4 $146 {[%emt 0:12:26]} ({Predecessor:} 14... N6d7 15. Ne2 Ne5 16. Nxe5 dxe5 17. Qc3 Bxc4 18. Qxc4 Ne6 19. Red1 b5 20. axb6 axb6 {1-0 (58) Van Foreest,L (2532)-Berkes,F (2676) Terme Catez 2021}) 15. Qxc4 {[%emt 0:00:04]} Ne6 {[%emt 0:00:18]} 16. Nh4 {[%emt 0:05:10][%cal Bf3h4,Bh4f5,Bf5d4][%mdl 32]} Bf8 {[%emt 0:15:05]} 17. Nf5 {[%emt 0:04:52]} b5 {[%emt 0:00:46]} 18. axb6 $1 {[%emt 0:00:21]} axb6 {[%emt 0:00:09]} 19. Nd4 {[%emt 0:16:16]} Rxa1 {[%emt 0:03:22]} 20. Rxa1 {[%emt 0:00:04]} Nc5 {[%emt 0:09:50]} 21. b4 {[%emt 0:03:29]} b5 {[%emt 0:01:27]} 22. Ndxb5 {[%emt 0:01:05]} cxb5 {[%emt 0:00:07]} 23. Nxb5 {[%emt 0:00:04]} Qb8 {[%emt 0:01:32]} 24. bxc5 {[%emt 0:00:22]} Rxe4 {[%emt 0:00:30]} 25. Qd3 {[%emt 0:02:57][%cal Rc5d6]} dxc5 {[%emt 0:00:19] [#] Threatens to win with ...c4.} 26. c4 {[%emt 0:00:27]} Re8 {[%emt 0:02:25]} 27. g3 {[%emt 0:09:34]} Qe5 {[%emt 0:02:25]} 28. Ra7 {[%emt 0:07:10]} Re7 {[%emt 0:02:20] And now ...Rxa7 would win.} 29. Rxe7 {[%emt 0:00:44]} (29. Ra8 {looks sharper.} Rd7 30. Qb1 Re7 31. g4) 29... Qxe7 {[%emt 0:01:43]} 30. Nc3 {[%emt 0:01:56]} Qe6 {[%emt 0:01:33]} 31. Kg2 {[%emt 0:01:22]} Bd6 {[%emt 0:01:34]} 32. Nd5 {[%emt 0:06:45]} (32. g4 {is more complex.} Qe5 33. Kf3 Qh2 34. Ke2) 32... Nd7 {[%emt 0:02:17]} 33. f4 {[%emt 0:01:34]} f5 {[%emt 0:04:17]} 34. Bd2 {[%emt 0:01:27]} Bf8 {[%emt 0:08:32]} 35. Bc3 {[%emt 0:01:51]} g6 {[%emt 0:01:29]} 36. Kf2 {[%emt 0:01:18]} Qf7 {[%emt 0:04:37]} 37. Qe2 {[%emt 0:01:35]} Kh7 {[%emt 0:02:21]} 38. h4 {[%emt 0:00:34]} h5 {[%emt 0:05:22] The position is equal.} 39. Kg2 {[%emt 0:00:33]} Bg7 {[%emt 0:01:49]} 40. Bxg7 {[%emt 0:00:38]} Qxg7 {[%emt 0:00:22]} 41. Qe6 {[%emt 0:08:03][%cal Oe6d7] [#] Black must now prevent Qxd7!} Kh6 {[%emt 0:01:51]} 42. Ne7 {[%emt 0:02:55] Threatening mate with Nxf5+.} Nf6 $1 {[%emt 0:01:57]} 43. Qxf6 {[%emt 0:14:50] Weighted Error Value: White=0.07 (flawless) /Black=0.04 (flawless)} 1/2-1/2